bitfinex-derivatives/quotes_ETHF0:USTF0_20251216
["timestamp","ask_amount","ask_price","bid_price","bid_amount"]
[1765893991220,0.00513233,2922.3,2921.7,0.17116]
[1765893991621,0.00513233,2922.3,2921.5,3.41901427]
[1765893991824,0.00424519,2923.0,2922.9,0.1711]
[1765893992125,0.11950671,2924.8,2922.9,0.00442513]
[1765893992334,0.11950671,2924.8,2924.0,0.17103]
[1765893992628,2.69950671,2924.8,2923.4,0.17106]
[1765893992922,0.00513233,2924.4,2923.8,0.00513233]
[1765893993316,0.00911653,2924.4,2923.9,3.59005427]
[1765893993518,0.11950671,2924.8,2924.4,0.171]
[1765893994218,0.11950671,2924.8,2924.3,3.41901427]
[1765893994415,0.00300042,2924.8,2924.3,9.41901427]
[1765893994614,0.17084,2927.4,2924.7,3.59000427]
[1765893994814,0.00300042,2926.6,2924.8,14.06098]
[1765893995021,42.97300042,2926.6,2924.8,14.06098]
[1765893995227,2.17,2926.6,2924.8,14.06098]
[1765893995417,0.17084,2927.3,2925.3,3.41901427]
[1765893995614,0.00511016,2926.0,2925.4,3.21293233]
[1765893995823,0.00511016,2926.0,2925.7,3.2078]
[1765893996021,0.00511016,2926.0,2925.5,3.38570907]
[1765893996223,3.2078,2925.6,2925.4,0.00513233]
[1765893996424,3.2078,2925.9,2925.4,0.00513233]
[1765893996628,3.2078,2925.6,2925.4,0.00513233]
[1765893996821,3.2078,2925.6,2922.2,1.22889729]
[1765893996822,5.7278,2925.6,2924.2,3.2078]
[1765893997125,0.00511016,2926.0,2925.1,0.17097]
[1765893997327,0.00300042,2925.8,2925.1,0.17097]
[1765893997721,0.00300042,2925.8,2925.2,0.00513233]
[1765893998021,0.00511016,2926.0,2925.2,0.00513233]
[1765893998230,0.00300042,2925.8,2925.3,0.17095]
[1765893998430,0.00300042,2925.8,2925.2,0.00513233]
[1765893999025,6.0,2925.7,2925.1,0.00438709]
[1765893999327,2.29,2925.7,2923.8,3.38570907]
[1765893999530,2.29,2925.7,2924.7,0.17099]
[1765893999830,0.00511016,2926.0,2924.8,0.17098]
[1765894000028,2.35511016,2926.0,2925.1,0.00513233]
[1765894000222,0.00300042,2925.8,2925.1,0.00823615]
[1765894000423,0.00511016,2926.0,2925.9,0.17092]
[1765894000619,6.431,2928.8,2926.6,0.17088]
[1765894000825,0.17073,2929.1,2926.8,3.38570907]
[1765894001028,2.17,2928.0,2926.3,7.71589]
[1765894001323,0.00300042,2927.9,2926.3,0.17089]
[1765894001631,0.00513233,2927.4,2926.8,0.00513233]
[1765894002133,0.17086,2927.0,2925.3,23.943]
[1765894002328,2.69,2927.0,2925.3,24.11395]
[1765894002524,0.17087,2926.7,2925.3,23.943]
[1765894002729,2.80087,2926.7,2925.3,23.943]
[1765894002924,0.17088,2926.6,2924.8,0.17098]
[1765894003230,4.3713,2926.3,2925.6,0.00513233]
[1765894004130,6.6013,2926.3,2925.6,0.00513233]
[1765894004430,40.8,2926.9,2925.6,0.00513233]
[1765894004626,0.00300042,2926.8,2926.4,3.2078]
[1765894005124,40.80513233,2927.4,2926.7,3.2078]
[1765894005322,40.80513233,2927.4,2925.6,0.00513233]
[1765894005323,43.42813275,2927.4,2927.0,3.2078]
[1765894005524,0.0465595,2927.2,2927.0,3.2078]
[1765894005834,0.00300042,2927.1,2926.7,3.2078]
[1765894006030,2.34300042,2927.1,2927.0,3.2078]
[1765894006224,0.0465595,2927.2,2927.0,3.2078]
[1765894006423,0.00300042,2927.1,2927.0,3.2078]
[1765894006632,0.04955992,2927.1,2927.0,3.2078]
[1765894007329,8.70955992,2927.1,2926.7,3.2078]
[1765894007529,0.04955992,2927.1,2927.0,3.2078]
[1765894007824,0.00300042,2927.1,2927.0,3.1612405]
[1765894008220,2.28300042,2927.1,2926.6,3.2078]
[1765894008424,0.00513233,2927.4,2926.9,3.2078]
[1765894008627,0.00513233,2927.4,2927.3,3.2078]
[1765894008827,0.00513233,2927.4,2925.9,4.123]
[1765894008828,0.00813275,2927.4,2927.0,3.2078]
[1765894009025,0.00813275,2927.4,2925.9,4.123]
[1765894009026,2.49813275,2927.4,2926.4,3.2078]
[1765894009228,2.49813275,2927.4,2926.6,3.2078]
[1765894009424,0.17084,2927.3,2926.3,3.2078]
[1765894009628,2.56084,2927.3,2927.0,3.2078]
[1765894009929,0.00300042,2926.6,2926.3,3.2078]
[1765894010232,3.37869,2926.5,2925.8,3.2078]
[1765894010531,6.03869,2926.5,2925.7,3.2078]
[1765894010730,3.2078,2926.2,2925.6,0.00513233]
[1765894010936,2.25,2926.2,2925.6,0.00513233]
[1765894011125,2.25,2926.2,2925.6,0.0092983]
[1765894011439,2.25,2926.2,2925.7,3.2078]
[1765894011728,5.4578,2926.2,2925.7,3.2078]
[1765894012031,2.25,2926.2,2925.7,3.2078]
[1765894012228,4.3713,2926.8,2926.1,3.2078]
[1765894012428,0.00300042,2926.5,2926.1,3.2078]
[1765894012934,3.2078,2926.4,2925.6,0.0092983]
[1765894013136,0.00300042,2926.5,2926.1,3.2078]
[1765894013331,2.52300042,2926.5,2925.8,3.2078]
[1765894013631,3.2078,2926.3,2925.6,0.0092983]
[1765894013837,2.43,2926.3,2925.6,0.0092983]
[1765894014031,2.43,2926.3,2925.8,3.2078]
[1765894014234,0.17093,2925.7,2924.4,2.954]
[1765894014430,2.56,2925.7,2924.7,3.2078]
[1765894014630,2.56,2925.7,2925.4,3.2078]
[1765894014823,43.53393042,2925.7,2924.8,3.2078]
[1765894015024,4.3713,2924.9,2924.2,27.1348]
[1765894015229,4.3713,2924.9,2924.3,0.00513233]
[1765894015230,0.00513233,2924.8,2924.3,0.00513233]
[1765894015432,2.67513233,2924.8,2924.3,0.00513233]
[1765894015935,0.0465546,2924.6,2924.3,0.00513233]
[1765894016133,2.6365546,2924.6,2922.8,0.1711]
[1765894016329,0.17102,2924.2,2922.5,2.88211]
[1765894016529,2.21,2924.2,2922.9,0.17109]
[1765894016726,2.21,2924.2,2922.8,4.0622784]
[1765894016924,0.0465546,2923.6,2922.8,4.0622784]
[1765894017131,0.0465546,2923.6,2923.0,1.2501678]
[1765894017326,0.04955502,2923.6,2923.3,0.17107]
[1765894017635,0.00300042,2923.1,2923.0,1.2501678]
[1765894017833,0.0465546,2923.6,2923.0,1.2501678]
[1765894018030,0.0465546,2923.3,2923.0,1.2501678]
[1765894018729,0.00300042,2923.2,2923.0,1.2501678]
[1765894018932,0.0465546,2923.1,2923.0,1.2501678]
[1765894019324,0.0465546,2923.1,2922.2,0.17113]
[1765894019325,8.5865546,2923.1,2921.7,4.0622784]
[1765894019524,0.0465546,2923.1,2921.7,4.0622784]
[1765894019727,0.0465546,2923.1,2922.3,4.0622784]
[1765894019933,0.0465546,2923.1,2922.8,0.1711]
[1765894020133,40.8,2924.2,2922.8,0.1245454]
[1765894020334,0.00300042,2923.1,2922.8,0.1245454]
[1765894020638,0.00513233,2923.8,2922.9,4.0622784]
[1765894020939,4.37643233,2923.8,2923.7,3.2078]
[1765894021234,7.76076207,2923.8,2923.2,3.2078]
[1765894021541,7.58154684,2924.9,2923.6,3.2078]
[1765894021726,4.37374684,2924.9,2923.5,4.0622784]
[1765894022034,4.37374684,2924.9,2923.3,0.17107]
[1765894022035,0.90591045,2924.8,2923.3,0.17107]
[1765894022234,4.37374684,2924.9,2923.7,0.17105]
[1765894022531,0.00513233,2924.6,2923.8,0.17104]
[1765894022733,0.00513233,2924.6,2924.5,3.2078]
[1765894023041,0.17104,2924.0,2922.8,0.00378862]
[1765894023234,4.3713,2923.8,2922.8,0.00378862]
[1765894023437,41.70559002,2923.7,2922.8,0.00378862]
[1765894023639,40.8,2923.7,2922.8,0.00378862]
[1765894023937,0.00513233,2924.6,2923.0,0.00342154]
[1765894024139,0.00513233,2924.6,2923.7,0.17105]
[1765894024335,0.00513233,2924.6,2923.5,4.0622784]
[1765894024336,0.00513233,2924.6,2923.8,0.17104]
[1765894024638,0.00244684,2924.9,2924.4,0.171]
[1765894025134,0.00244684,2924.9,2924.1,4.0622784]
[1765894025334,0.00244684,2924.9,2924.1,4.2332984]
[1765894025537,0.00244684,2924.9,2924.1,4.0622784]
[1765894025737,0.00513233,2924.8,2924.1,4.0622784]
[1765894026038,1.78655127,2927.1,2924.7,4.0622784]
[1765894026242,0.90586549,2926.7,2925.4,0.1243954]
[1765894026436,0.90586549,2926.7,2925.3,4.0622784]
[1765894026437,4.3713,2926.8,2925.3,4.0622784]
[1765894026644,0.90586549,2926.7,2925.3,4.0622784]
[1765894026936,2.45,2926.7,2924.4,4.2332884]
[1765894027137,0.00513233,2925.8,2925.3,0.00513233]
[1765894028540,0.00513233,2925.8,2925.3,4.06741073]
[1765894028734,0.00380612,2926.7,2925.6,0.17094]
[1765894029045,0.00380612,2926.7,2925.3,0.00513233]
[1765894029046,0.90586246,2926.6,2925.3,0.00513233]
[1765894029233,0.00380612,2926.7,2925.7,0.17093]
[1765894029434,0.00380612,2926.7,2925.8,0.17092]
[1765894029641,0.00513233,2926.5,2925.9,0.17092]
[1765894030835,0.00513233,2926.5,2926.1,4.2331784]
[1765894031638,0.00513233,2926.5,2926.4,3.2078]
[1765894032931,0.00031524,2926.7,2926.4,3.2078]
[1765894033248,0.00031524,2926.7,2926.5,0.17088]
[1765894033542,0.00031524,2926.7,2926.4,3.2078]
[1765894033950,0.00031524,2926.7,2926.4,3.21187548]
[1765894036245,0.00031524,2926.7,2926.4,7.27415388]
[1765894036543,0.00031524,2926.7,2926.6,0.17088]
[1765894037536,0.00034757,2926.8,2926.7,0.17087]
[1765894037733,0.00034757,2926.8,2926.7,3.37867]
[1765894038240,0.00034757,2926.8,2926.7,13.4409484]
[1765894038444,0.00034757,2926.8,2926.7,3.37867]
[1765894038744,0.00377614,2926.8,2926.7,3.2078]
[1765894039335,0.00377614,2926.8,2926.7,3.37867]
[1765894039735,0.00377614,2926.8,2926.7,3.2078]
[1765894040744,11.49157614,2926.8,2926.1,3.2078]
[1765894040941,5.49157614,2926.8,2926.1,3.2078]
[1765894041742,2.28377614,2926.8,2926.4,3.2078]
[1765894042347,0.00377614,2926.8,2926.4,3.2078]
[1765894042546,0.00377614,2926.8,2926.7,3.2078]
[1765894042749,0.00377614,2926.8,2926.7,3.37867]
[1765894043848,0.00377614,2926.8,2926.7,3.2078]
[1765894044050,0.00377614,2926.8,2926.4,3.2078]
[1765894045141,0.00377614,2926.8,2926.7,3.2078]
[1765894045843,8.39377614,2926.8,2926.1,3.21122376]
[1765894046144,8.39377614,2926.8,2925.3,0.00513233]
[1765894046145,3.2078,2926.2,2925.5,3.2078]
[1765894046339,40.8,2926.1,2925.5,3.2078]
[1765894046843,0.00377614,2926.8,2926.3,0.17089]
[1765894047044,0.00377614,2926.8,2926.5,3.2078]
[1765894047250,0.00377614,2926.8,2926.5,0.00274298]
[1765894047447,2.27377614,2926.8,2926.5,0.00274298]
[1765894047648,0.00377614,2926.8,2926.5,0.00274298]
[1765894047845,6.0,2926.7,2926.5,0.00274298]
[1765894048051,6.0,2926.7,2925.5,0.17094]
[1765894048052,8.65,2926.7,2925.9,3.2078]
[1765894048246,3.6877,2926.0,2925.3,3.21293233]
[1765894048550,3.6877,2926.0,2925.3,0.00513233]
[1765894048551,9.4155,2926.0,2925.3,0.00513233]
[1765894048741,3.2078,2925.7,2925.3,0.00513233]
[1765894048947,40.8,2925.6,2925.3,0.00513233]
[1765894049145,43.02,2925.6,2925.3,0.00867427]
[1765894049344,0.00377614,2926.8,2925.3,0.00867427]
[1765894049345,0.00377614,2926.8,2925.6,0.17094]
[1765894049545,0.17087,2926.7,2925.4,0.17095]
[1765894049741,2.34,2926.7,2925.5,0.17094]
[1765894050242,2.34,2926.7,2925.3,0.00867427]
[1765894050646,0.17091,2926.2,2925.3,0.00867427]
[1765894050848,2.52091,2926.2,2925.3,0.00867427]
[1765894051040,8.52091,2926.2,2925.3,0.00867427]
[1765894051239,8.35,2926.2,2925.3,0.00867427]
[1765894051448,4.4903,2926.0,2925.3,0.0019731]
[1765894051638,7.1803,2926.0,2923.9,11.6812784]
[1765894051845,7.1803,2926.0,2924.5,4.0622784]
[1765894052042,2.69,2926.0,2925.2,0.17096]
[1765894052239,7.1803,2926.0,2924.5,4.2332784]
[1765894052440,0.00513233,2925.5,2925.0,0.00513233]
[1765894052644,2.48513233,2925.5,2925.0,0.0084201]
[1765894053056,2.48513233,2925.5,2925.0,2.01e-05]
[1765894053654,6.0,2925.4,2925.0,2.01e-05]
[1765894053854,3.2078,2925.1,2925.0,2.01e-05]
[1765894054050,5.4178,2925.1,2925.0,2.01e-05]
[1765894056055,5.3978,2925.1,2925.0,2.01e-05]
[1765894056746,4.4033,2925.0,2924.0,3.2078]
[1765894057052,6.9933,2925.0,2924.1,0.17103]
[1765894057252,0.0465546,2924.6,2924.5,3.2078]
[1765894057653,0.0465546,2924.6,2924.5,0.00349596]
[1765894057654,0.0496603,2924.6,2924.5,0.00349596]
[1765894058054,0.0496603,2924.6,2924.3,0.00513233]
[1765894058055,6.0496603,2924.6,2923.8,3.2078]
[1765894058353,3.2078,2923.9,2923.0,3.2078]
[1765894058550,0.0465546,2924.2,2923.7,3.2078]
[1765894058752,0.0465546,2924.2,2924.0,3.2078]
[1765894058945,0.0565546,2924.2,2924.0,3.2078]
[1765894059161,2.4065546,2924.2,2924.0,3.21181399]
[1765894059357,0.0465546,2924.1,2924.0,3.21181399]
[1765894059662,2.2965546,2924.1,2924.0,0.00401399]
[1765894060057,5.6758546,2924.1,2923.8,0.00513233]
[1765894060255,0.0465546,2924.0,2923.8,0.00513233]
[1765894060657,5.6643546,2924.0,2923.8,0.00513233]
[1765894060854,0.0465546,2924.0,2923.8,0.00513233]
[1765894061157,2.5965546,2924.0,2923.8,0.00883611]
[1765894061361,3.2543546,2923.9,2923.8,0.00883611]
[1765894061555,11.6343546,2923.9,2923.3,3.2078]
[1765894061857,3.2078,2923.5,2923.0,3.2078]
[1765894062060,3.9333,2923.2,2921.6,4.0622784]
[1765894062257,3.2078,2922.3,2921.9,0.17115]
[1765894062560,0.0465546,2922.1,2921.9,0.00301285]
[1765894062954,0.00383772,2922.3,2922.0,0.17115]
[1765894064158,0.00383772,2922.3,2922.1,3.2078]
[1765894064468,0.00383772,2922.3,2921.9,0.00301285]
[1765894065156,0.00383772,2922.3,2921.9,3.21081285]
[1765894065660,0.00383772,2922.3,2922.0,0.17114]
[1765894067356,0.04660851,2922.2,2922.0,0.17114]
[1765894068563,0.04660851,2922.1,2922.0,4.24585551]
[1765894068757,0.00383772,2922.3,2922.0,4.24585551]
[1765894070064,0.00383772,2922.3,2922.0,0.17114]
[1765894070961,2.7138,2921.6,2920.0,2.7169]
[1765894071158,9.2078,2922.2,2920.0,2.7169]
[1765894071159,3.2078,2920.7,2920.3,4.07471551]
[1765894071361,3.2078,2921.6,2920.8,4.67821]
[1765894071567,3.2078,2921.2,2920.8,0.17121]
[1765894071764,3.2078,2920.9,2920.8,0.17121]
[1765894071965,3.2078,2920.9,2920.8,0.00343418]
[1765894072956,0.00513233,2921.1,2920.8,6.00343418]
[1765894073165,0.00513233,2921.1,2920.8,0.17464418]
[1765894073368,0.00513233,2921.1,2920.7,3.39681001]
[1765894073369,2.41513233,2921.1,2920.5,2.91034417]
[1765894073666,2.41513233,2921.1,2920.0,2.7169]
[1765894073667,3.2078,2920.9,2920.3,0.17125]
[1765894074061,0.00513233,2921.1,2920.7,3.2078]
[1765894074259,3.2078,2921.2,2920.7,9.2078]
[1765894074461,3.2078,2921.2,2920.8,17.287]
[1765894074769,3.2078,2921.2,2921.1,0.1712]
[1765894074977,3.2078,2921.7,2921.1,3.39681001]
[1765894075470,3.21293233,2921.7,2921.5,0.17117]
[1765894075669,3.21293233,2921.7,2921.5,17.45917]
[1765894076666,0.00513233,2921.7,2921.5,17.46017]
[1765894077678,0.00513233,2921.7,2921.5,0.17117]
[1765894077862,0.04661702,2921.6,2921.5,0.17117]
[1765894078065,0.04661702,2921.6,2921.5,5.15417]
[1765894078471,0.04661702,2921.6,2921.5,17.46017]
[1765894078875,3.21163772,2922.3,2921.5,17.46017]
[1765894078876,3.21163772,2922.3,2921.5,17.289]
[1765894079072,3.21163772,2922.3,2921.9,0.17115]
[1765894080073,3.21163772,2922.3,2922.0,17.29]
[1765894080272,3.21163772,2922.3,2922.0,17.46114]
[1765894080672,0.00383772,2922.3,2922.2,0.17114]
[1765894080875,3.2078,2923.0,2922.8,0.1711]
[1765894081866,5.5906595,2923.0,2922.8,0.00264401]
[1765894082175,5.5906595,2923.0,2921.8,3.2078]
[1765894082176,6.0,2922.9,2921.8,3.2078]
[1765894082383,4.4033,2922.4,2921.8,3.2078]
[1765894082677,3.2078,2922.0,2921.3,3.2078]
[1765894082871,4.4033,2921.6,2921.3,3.2078]
[1765894083080,6.9533,2921.6,2921.0,3.2078]
[1765894083380,6.95843233,2921.6,2921.3,0.00257115]
[1765894083780,0.00513233,2921.6,2921.3,3.39938116]
[1765894084076,3.2078,2922.1,2921.5,0.17118]
[1765894084978,3.2078,2922.1,2921.8,0.17116]
[1765894085370,0.00513233,2922.2,2921.8,14.95516]
[1765894085574,0.00513233,2922.2,2921.4,6.60461001]
[1765894085575,0.00513233,2922.2,2921.6,17.287]
[1765894086078,0.00513233,2922.2,2921.7,3.37896]
[1765894087278,0.00513233,2922.2,2921.7,3.2078]
[1765894087676,0.00513233,2922.2,2921.7,6.60461001]
[1765894087874,3.2106595,2923.0,2922.4,4.507]
[1765894088179,0.0028595,2923.0,2922.9,0.12449149]
[1765894088375,0.0028595,2923.0,2922.8,3.2078]
[1765894088573,3.2106595,2923.0,2922.3,6.35]
[1765894088772,3.2106595,2923.0,2922.1,0.17114]
[1765894088985,0.00513233,2922.8,2922.3,0.00513233]
[1765894089886,3.2078,2922.7,2922.3,0.00513233]
[1765894090181,0.00513233,2922.8,2922.3,0.00513233]
[1765894091683,0.00513233,2922.8,2922.3,0.17626233]
[1765894092480,0.00513233,2922.8,2922.4,0.17112]
[1765894092683,0.00513233,2922.8,2922.7,3.2078]
[1765894092881,0.00513233,2922.8,2922.7,20.4898]
[1765894094492,0.00513233,2922.8,2922.7,3.2078]
[1765894094791,0.00513233,2922.8,2922.7,20.4888]
[1765894095888,0.00513233,2922.8,2922.7,3.2078]
[1765894096687,0.00513233,2922.8,2922.3,0.17626233]
[1765894096688,0.00513233,2922.8,2922.3,3.38406233]
[1765894096884,0.00513233,2922.8,2922.4,9.12]
[1765894097193,0.00513233,2922.8,2922.4,17.277]
[1765894097500,3.2078,2922.6,2922.4,17.277]
[1765894097700,3.8078,2922.6,2922.4,17.277]
[1765894097889,5.8178,2922.6,2922.4,17.277]
[1765894098399,4.3487,2922.4,2922.3,0.00513233]
[1765894098796,12.6687,2922.4,2921.4,3.2078]
[1765894099100,3.2078,2921.9,2921.2,0.17119]
[1765894099494,0.04660851,2921.6,2921.2,0.17119]
[1765894099702,0.04660851,2921.6,2921.4,3.2078]
[1765894100201,4.39530851,2921.6,2921.2,0.00513233]
[1765894100501,0.04660851,2921.5,2921.2,0.00513233]
[1765894100702,2.29660851,2921.5,2921.2,0.00513233]
[1765894101406,3.2078,2921.4,2921.2,0.00513233]
[1765894101707,5.51440851,2921.4,2921.2,0.00513233]
[1765894102398,11.51440851,2921.4,2920.0,4.43939312]
[1765894102706,3.25440851,2920.7,2920.2,17.274]
[1765894102905,3.25440851,2920.7,2920.0,3.2078]
[1765894103200,5.69784312,2920.7,2920.0,3.21134316]
[1765894103404,0.00513233,2920.6,2920.1,0.00513233]
[1765894103606,0.04660851,2920.4,2920.1,0.00513233]
[1765894104705,0.04660851,2920.3,2920.1,0.00513233]
[1765894105201,3.2078,2920.2,2920.1,0.00513233]
[1765894105801,3.25440851,2920.2,2920.1,0.00513233]
[1765894106304,5.54440851,2920.2,2920.1,0.00513233]
[1765894106505,2.89670519,2920.6,2920.1,2.64191722]
[1765894106709,0.00343461,2920.7,2920.5,2.63678489]
[1765894106912,3.2078,2921.4,2920.6,17.274]
[1765894107100,3.2078,2922.0,2921.3,2.63678489]
[1765894107305,3.2078,2922.0,2921.7,2.63678489]
[1765894107500,4.41792,2923.2,2921.7,2.63678489]
[1765894107501,0.00513233,2922.1,2921.9,3.2078]
[1765894107706,7.62572,2923.2,2922.1,0.17114]
[1765894107906,9.57864242,2923.2,2922.5,3.2078]
[1765894108211,9.57864242,2923.2,2922.5,5.84458489]
[1765894108606,3.2078,2922.7,2922.6,0.00513233]
[1765894108801,0.02940128,2922.7,2922.6,0.00513233]
[1765894109606,6.02940128,2922.7,2922.6,0.00513233]
[1765894109922,0.02940128,2922.7,2922.6,0.00513233]
[1765894110804,0.02940128,2922.7,2922.6,3.21293233]
[1765894112007,0.00513233,2923.1,2922.6,3.21293233]
[1765894112508,0.00513233,2923.1,2922.7,3.2078]
[1765894112705,0.00513233,2923.1,2923.0,6.60168205]
[1765894113414,0.00513233,2923.1,2923.0,3.2078]
[1765894118208,0.07214242,2923.2,2923.0,6.60168205]
[1765894118611,3.2078,2923.9,2923.0,12.60168205]
[1765894118813,3.2078,2924.3,2923.3,3.2078]
[1765894119016,3.2078,2924.3,2922.6,21.51820162]
[1765894119017,3.2078,2924.3,2923.6,3.2078]
[1765894119222,0.00513233,2924.2,2924.1,3.39388205]
[1765894119422,3.2078,2924.7,2924.1,20.27390205]
[1765894119621,3.2078,2924.7,2924.1,20.10288205]
[1765894119622,3.21139746,2924.7,2924.1,20.10288205]
[1765894119822,0.00359746,2924.7,2924.6,3.2078]
[1765894120021,2.67359746,2924.7,2924.6,0.00413418]
[1765894120219,5.88139746,2924.7,2924.6,0.00413418]
[1765894120515,3.21139746,2924.7,2924.6,0.00413418]
[1765894120716,5.84139746,2924.7,2924.6,0.00413418]
[1765894120922,5.84139746,2924.7,2924.4,0.00513233]
[1765894120923,11.84139746,2924.7,2923.9,3.2078]
[1765894121111,3.2078,2924.4,2923.4,20.4608]
[1765894121311,5.5478,2924.4,2923.4,3.2078]
[1765894121515,3.2078,2924.6,2924.0,7.54848205]
[1765894121714,0.00359746,2924.7,2924.5,3.2078]
[1765894121913,0.00359746,2924.7,2924.5,0.00411991]
[1765894122125,0.00359746,2924.7,2924.5,3.21191991]
[1765894123017,0.00359746,2924.7,2924.6,17.419]
[1765894123223,3.2078,2925.6,2924.6,17.419]
[1765894123415,1.78,2925.6,2924.9,3.2078]
[1765894123613,3.2078,2925.9,2925.0,3.39388205]
[1765894123818,4.15252504,2926.0,2925.4,3.2078]
[1765894124019,4.24184547,2926.0,2925.5,0.53407444]
[1765894124218,0.0078336,2926.0,2925.6,0.53407444]
[1765894124420,0.0078336,2926.0,2925.7,0.53407444]
[1765894124626,0.0078336,2926.0,2925.8,0.53407444]
[1765894124825,0.0078336,2926.0,2925.9,0.53407444]
[1765894125415,0.0078336,2926.0,2925.9,14.68007444]
[1765894125616,0.0078336,2926.0,2925.9,3.74187444]
[1765894125816,3.2078,2926.5,2925.9,0.70499444]
[1765894126015,3.2078,2926.8,2926.0,3.74187444]
[1765894126215,3.2078,2926.8,2926.1,0.53407444]
[1765894126517,3.2078,2926.8,2926.2,0.53407444]
[1765894126722,3.2078,2926.8,2926.3,0.53407444]
[1765894126916,3.21123504,2926.8,2926.4,0.53407444]
[1765894127116,3.21123504,2926.8,2926.5,0.53407444]
[1765894127317,3.21123504,2926.8,2926.6,0.53407444]
[1765894127512,3.2078,2927.1,2926.7,0.53407444]
[1765894127719,3.2078,2927.8,2927.2,4.0845]
[1765894127919,3.2078,2928.7,2927.7,3.2078]
[1765894128115,3.2078,2928.3,2927.9,0.00512347]
[1765894128422,5.7278,2928.3,2928.0,0.53407444]
[1765894128621,0.00420977,2928.3,2928.1,0.53407444]
[1765894128822,2.25420977,2928.3,2928.2,0.53407444]
[1765894129223,2.65420977,2928.3,2928.2,0.53407444]
[1765894129418,0.28420977,2928.3,2928.2,0.53407444]
[1765894129621,8.30420977,2928.3,2927.9,3.21292347]
[1765894129819,7.5825,2928.0,2926.9,3.2078]
[1765894130123,3.2078,2927.6,2926.9,3.2078]
[1765894130329,5.9078,2927.6,2926.9,3.2078]
[1765894130729,3.21072578,2927.6,2927.0,0.00512347]
[1765894131228,3.21072578,2927.6,2927.1,0.17085]
[1765894131527,0.00509395,2928.5,2927.7,0.17081]
[1765894131528,3.2078,2928.2,2927.7,0.17081]
[1765894131727,0.00509395,2928.5,2927.7,3.37861]
[1765894131922,0.00509395,2928.5,2928.1,3.2078]
[1765894132630,0.00833703,2928.5,2928.1,3.2078]
[1765894133620,2.8905555,2928.8,2928.3,4.05814296]
[1765894133825,3.2078,2929.1,2928.5,3.2078]
[1765894134134,3.2078,2929.1,2928.5,9.9518]
[1765894134331,3.2078,2928.8,2928.0,3.2078]
[1765894134642,0.00420158,2928.8,2928.1,0.17591347]
[1765894135128,0.00420158,2928.8,2928.2,17.215]
[1765894135330,3.2078,2929.1,2928.2,17.215]
[1765894135727,5.4178,2929.1,2928.3,3.2078]
[1765894135927,3.2078,2929.1,2928.3,3.2078]
[1765894136131,3.2078,2929.1,2928.3,3.37858]
[1765894136432,3.21115333,2929.1,2928.6,3.2078]
[1765894136635,0.00335333,2929.1,2928.6,3.37856]
[1765894136825,0.00335333,2929.1,2928.7,17.211]
[1765894137022,0.00335333,2929.1,2928.7,17.21400988]
[1765894137223,0.00335333,2929.1,2928.9,3.2078]
[1765894138034,0.00335333,2929.1,2928.9,5.811]
[1765894138537,0.00335333,2929.1,2928.7,0.00300988]
[1765894138741,2.40335333,2929.1,2928.7,0.00300988]
[1765894138931,2.59335333,2929.1,2928.7,0.00300988]
[1765894139133,0.00335333,2929.1,2928.7,0.00300988]
[1765894139435,3.2078,2929.0,2928.7,0.00300988]
[1765894139650,5.8278,2929.0,2928.3,3.2078]
[1765894140133,4.3747,2928.8,2928.3,3.2078]
[1765894140335,4.3747,2928.0,2927.4,3.2078]
[1765894140639,3.2078,2928.5,2927.6,4.05480756]
[1765894140829,4.37982347,2928.8,2927.6,7.26260756]
[1765894141027,4.3747,2928.0,2927.4,0.00369673]
[1765894141229,6.5747,2928.0,2927.4,0.0088202]
[1765894141431,3.2078,2927.8,2927.4,0.0088202]
[1765894141729,3.2078,2927.8,2927.5,0.41268519]
[1765894141930,5.4778,2927.8,2926.9,3.2078]
[1765894142131,3.2078,2927.5,2926.6,3.2078]
[1765894142333,5.5478,2927.5,2926.6,3.2078]
[1765894142940,5.5478,2927.5,2926.6,3.21139032]
[1765894143138,3.2078,2927.0,2926.8,0.00512347]
[1765894143333,2.9283,2926.8,2926.6,0.00359032]
[1765894143533,5.4783,2926.8,2926.3,3.2078]
[1765894143733,3.2078,2926.4,2925.7,3.2078]
[1765894143930,5.7178,2926.4,2925.7,3.2078]
[1765894144131,3.2078,2925.8,2925.1,3.2078]
[1765894144441,0.00512347,2925.7,2925.1,3.2078]
[1765894144741,2.65512347,2925.7,2925.2,0.00512347]
[1765894145142,2.65512347,2925.7,2925.2,3.21292347]
[1765894145333,2.65512347,2925.7,2925.2,0.00512347]
[1765894145649,0.00512347,2925.7,2925.5,3.2078]
[1765894146237,3.2078,2926.4,2925.6,0.17093]
[1765894146448,3.2078,2926.4,2925.8,3.2078]
[1765894146743,5.3978,2926.4,2925.2,0.00512347]
[1765894147036,3.21292347,2926.1,2925.4,3.2078]
[1765894147246,0.00512347,2926.1,2925.8,3.2078]
[1765894148240,3.9449,2925.9,2925.2,3.21292347]
[1765894148437,9.5627,2925.9,2925.2,3.21292347]
[1765894148637,9.5227,2925.9,2925.2,3.21292347]
[1765894149346,3.2078,2925.6,2925.2,0.00512347]
[1765894149548,7.1527,2925.9,2925.2,0.00512347]
[1765894149746,7.6127,2925.9,2925.2,3.21292347]
[1765894149947,7.1527,2925.9,2925.2,3.21292347]
[1765894150138,7.1527,2925.9,2925.1,0.00261978]
[1765894150139,15.6027,2925.9,2925.1,0.00261978]
[1765894150341,3.2078,2925.2,2925.1,0.00261978]
[1765894150642,2.47,2925.2,2925.1,0.00261978]
[1765894150841,3.2078,2925.4,2925.1,0.00261978]
[1765894151042,5.4178,2925.4,2925.1,0.00261978]
[1765894151846,3.2078,2925.4,2925.1,0.00261978]
[1765894152238,5.8078,2925.4,2925.1,0.00261978]
[1765894152437,3.9449,2925.9,2925.2,3.2078]
[1765894152438,3.2078,2925.8,2925.2,3.2078]
[1765894152648,5.6078,2925.8,2925.2,3.2078]
[1765894153037,3.2078,2925.7,2925.1,0.00261978]
[1765894153241,5.4678,2925.7,2925.1,0.00261978]
[1765894153451,3.2078,2925.4,2925.1,0.00261978]
[1765894153650,3.3878,2925.4,2925.1,0.00261978]
[1765894153945,3.2078,2925.4,2925.1,0.00261978]
[1765894154248,0.17106,2923.6,2921.2,3.47619612]
[1765894154544,2.19,2923.6,2921.6,7.98810756]
[1765894154749,2.69,2923.6,2922.4,0.17112]